[Event "Live Chess"]
[Site "Chess.com"]
[Date "2023.05.21"]
[Round "-"]
[White "yarek"]
[Black "WelshTiger"]
[Result "0-1"]
[WhiteElo "1881"]
[BlackElo "2359"]
[TimeControl "300"]
[EndTime "0:35:27 PDT"]
[Termination "WelshTiger won on time"]

1. e4 {[%clk 0:04:57.5]} 1... c5 {[%clk 0:04:58.5]} 2. d4 {[%clk 0:04:55.6]}
2... cxd4 {[%clk 0:04:57.5]} 3. c3 {[%clk 0:04:54.8]} 3... Nf6 {[%clk
0:04:55.8]} 4. e5 {[%clk 0:04:51.6]} 4... Nd5 {[%clk 0:04:54.9]} 5. cxd4 {[%clk
0:04:50.4]} 5... d6 {[%clk 0:04:50.4]} 6. Bc4 {[%clk 0:04:48.4]} 6... e6 {[%clk
0:04:48.2]} 7. Bxd5 {[%clk 0:04:39.1]} 7... exd5 {[%clk 0:04:47.3]} 8. Bf4
{[%clk 0:04:34.2]} 8... Nc6 {[%clk 0:04:45.2]} 9. Qe2 {[%clk 0:04:12.8]} 9...
Nxd4 {[%clk 0:04:34.1]} 10. Qd3 {[%clk 0:03:54]} 10... Ne6 {[%clk 0:04:32.4]}
11. Bg3 {[%clk 0:03:46.3]} 11... dxe5 {[%clk 0:04:31.1]} 12. Bxe5 {[%clk
0:03:44.1]} 12... Bb4+ {[%clk 0:04:29.4]} 13. Nd2 {[%clk 0:03:40.4]} 13... Qg5
{[%clk 0:04:21.5]} 14. Qb5+ {[%clk 0:03:34.6]} 14... Bd7 {[%clk 0:04:20.2]} 15.
Qxb4 {[%clk 0:03:33.9]} 15... Qxe5+ {[%clk 0:04:18.8]} 16. Ne2 {[%clk
0:03:29.1]} 16... b6 {[%clk 0:03:58.9]} 17. Nf3 {[%clk 0:03:15.4]} 17... Qe4
{[%clk 0:03:55.8]} 18. Qxe4 {[%clk 0:03:11.7]} 18... dxe4 {[%clk 0:03:55]} 19.
Ne5 {[%clk 0:03:10.2]} 19... f6 {[%clk 0:03:37]} 20. Nxd7 {[%clk 0:03:05]} 20...
Kxd7 {[%clk 0:03:36.9]} 21. O-O-O+ {[%clk 0:03:02]} 21... Ke7 {[%clk 0:03:35.1]}
22. Ng3 {[%clk 0:02:58]} 22... Nc5 {[%clk 0:03:32.7]} 23. Kb1 {[%clk 0:02:39.8]}
23... Rad8 {[%clk 0:03:17]} 24. Rde1 {[%clk 0:02:32.2]} 24... Kf7 {[%clk
0:03:05.8]} 25. Nxe4 {[%clk 0:02:29.3]} 25... Nd3 {[%clk 0:03:05.3]} 26. Re2
{[%clk 0:02:16.9]} 26... Nf4 {[%clk 0:03:01.2]} 27. Rc2 {[%clk 0:02:06.4]} 27...
Rd7 {[%clk 0:02:56.4]} 28. g3 {[%clk 0:02:02.8]} 28... Ne6 {[%clk 0:02:53.9]}
29. Rhc1 {[%clk 0:01:55.2]} 29... Rhd8 {[%clk 0:02:52.1]} 30. f4 {[%clk
0:01:49.2]} 30... f5 {[%clk 0:02:45.9]} 31. Nc3 {[%clk 0:01:27.9]} 31... Nc5
{[%clk 0:02:43.9]} 32. Nb5 {[%clk 0:01:17.5]} 32... a5 {[%clk 0:02:41.8]} 33. b3
{[%clk 0:01:06.6]} 33... Ne4 {[%clk 0:02:30.4]} 34. Rc7 {[%clk 0:01:03]} 34...
Nc5 {[%clk 0:02:14.1]} 35. Nd6+ {[%clk 0:00:54.6]} 35... Ke6 {[%clk 0:02:10.6]}
36. Rxd7 {[%clk 0:00:47]} 36... Rxd7 {[%clk 0:02:09.3]} 37. Nb5 {[%clk
0:00:42.9]} 37... Rd2 {[%clk 0:02:02.9]} 38. Re1+ {[%clk 0:00:37]} 38... Ne4
{[%clk 0:01:52.7]} 39. Nc3 {[%clk 0:00:23.7]} 39... Rxh2 {[%clk 0:01:50.9]} 40.
Nxe4 {[%clk 0:00:22.2]} 40... fxe4 {[%clk 0:01:50.8]} 41. Rxe4+ {[%clk
0:00:21.2]} 41... Kf6 {[%clk 0:01:48.9]} 42. Rc4 {[%clk 0:00:15.6]} 42... Re2
{[%clk 0:01:46.3]} 43. Rc6+ {[%clk 0:00:14.7]} 43... Re6 {[%clk 0:01:45.5]} 44.
Rc7 {[%clk 0:00:13.7]} 44... h5 {[%clk 0:01:42]} 45. Kc2 {[%clk 0:00:12.8]}
45... g6 {[%clk 0:01:39.8]} 46. Kd3 {[%clk 0:00:12.2]} 46... Kf5 {[%clk
0:01:39.2]} 47. Rf7+ {[%clk 0:00:08.9]} 47... Kg4 {[%clk 0:01:38]} 48. f5 {[%clk
0:00:02.8]} 48... gxf5 {[%clk 0:01:35.9]} 49. Rg7+ {[%clk 0:00:02.7]} 49... Kf3
{[%clk 0:01:34.8]} 50. Kd4 {[%clk 0:00:01.1]} 50... Re4+ {[%clk 0:01:29.3]} 0-1

[Event "Live Chess"]
[Site "Chess.com"]
[Date "2023.05.21"]
[Round "-"]
[White "MarkLim1"]
[Black "BostonStrangler"]
[Result "0-1"]
[WhiteElo "1681"]
[BlackElo "2058"]
[TimeControl "300"]
[EndTime "0:35:29 PDT"]
[Termination "BostonStrangler won by resignation"]

1. d4 {[%clk 0:04:59.3]} 1... Nf6 {[%clk 0:04:58.5]} 2. Nf3 {[%clk 0:04:58.6]}
2... c5 {[%clk 0:04:57.9]} 3. d5 {[%clk 0:04:57.8]} 3... g6 {[%clk 0:04:55.4]}
4. Nc3 {[%clk 0:04:56.7]} 4... Bg7 {[%clk 0:04:53.2]} 5. e4 {[%clk 0:04:55.7]}
5... O-O {[%clk 0:04:50.4]} 6. Be2 {[%clk 0:04:53]} 6... b5 {[%clk 0:04:49.1]}
7. Bxb5 {[%clk 0:04:51.2]} 7... Nxe4 {[%clk 0:04:47.7]} 8. Nxe4 {[%clk
0:04:49.1]} 8... Qa5+ {[%clk 0:04:46.7]} 9. Nc3 {[%clk 0:04:35]} 9... Bxc3+
{[%clk 0:04:45.8]} 10. bxc3 {[%clk 0:04:34.3]} 10... Qxb5 {[%clk 0:04:45.4]} 11.
Qd3 {[%clk 0:04:29]} 11... Ba6 {[%clk 0:04:44.2]} 12. Qxb5 {[%clk 0:04:27.5]}
12... Bxb5 {[%clk 0:04:43.2]} 13. Be3 {[%clk 0:04:25.9]} 13... d6 {[%clk
0:04:41.7]} 14. Nd2 {[%clk 0:04:15.8]} 14... Nd7 {[%clk 0:04:39.3]} 15. c4
{[%clk 0:04:14.1]} 15... Ba6 {[%clk 0:04:38.3]} 16. O-O {[%clk 0:04:10.6]} 16...
Ne5 {[%clk 0:04:36.9]} 17. Rab1 {[%clk 0:04:02.4]} 17... Rab8 {[%clk 0:04:35.4]}
18. Rfe1 {[%clk 0:03:55.1]} 18... Nxc4 {[%clk 0:04:26.3]} 19. Nxc4 {[%clk
0:03:53.8]} 19... Bxc4 {[%clk 0:04:25.4]} 20. a3 {[%clk 0:03:50.8]} 20... Bxd5
{[%clk 0:04:17.7]} 21. Bh6 {[%clk 0:03:49.4]} 21... Rfe8 {[%clk 0:04:15.4]} 22.
f3 {[%clk 0:03:44.4]} 22... e6 {[%clk 0:04:07]} 23. Kf2 {[%clk 0:03:34.2]} 23...
f5 {[%clk 0:04:01]} 24. Bf4 {[%clk 0:03:32.9]} 24... e5 {[%clk 0:03:58.5]} 25.
Bd2 {[%clk 0:03:31.8]} 25... Kf7 {[%clk 0:03:56.3]} 26. Bc3 {[%clk 0:03:30.6]}
26... Ke6 {[%clk 0:03:50]} 27. Rb2 {[%clk 0:03:29.9]} 27... Rxb2 {[%clk
0:03:47.4]} 28. Bxb2 {[%clk 0:03:29.1]} 28... Rb8 {[%clk 0:03:46.5]} 29. Bc3
{[%clk 0:03:27.6]} 29... Bc6 {[%clk 0:03:41]} 30. g4 {[%clk 0:03:26.1]} 30...
Ba4 {[%clk 0:03:38]} 31. Re2 {[%clk 0:03:24.7]} 31... Rb1 {[%clk 0:03:32.3]} 32.
gxf5+ {[%clk 0:03:19.2]} 32... gxf5 {[%clk 0:03:30.4]} 33. f4 {[%clk 0:03:18.3]}
33... e4 {[%clk 0:03:28.7]} 34. Rd2 {[%clk 0:03:08.6]} 34... Rc1 {[%clk
0:03:23.8]} 35. Ba5 {[%clk 0:03:06.4]} 35... Bxc2 {[%clk 0:03:11.9]} 36. Bc7
{[%clk 0:03:04.6]} 36... d5 {[%clk 0:03:09.9]} 37. Bb8 {[%clk 0:03:02.8]} 37...
d4 {[%clk 0:03:05.6]} 38. Re2 {[%clk 0:02:58.7]} 38... e3+ {[%clk 0:03:03.2]}
39. Kg3 {[%clk 0:02:57.7]} 39... Rg1+ {[%clk 0:02:56.4]} 40. Kh3 {[%clk
0:02:54.5]} 40... Bd3 {[%clk 0:02:51.9]} 41. Rb2 {[%clk 0:02:49.9]} 41... Bf1+
{[%clk 0:02:50.4]} 42. Kh4 {[%clk 0:02:48.5]} 42... Rg4+ {[%clk 0:02:47.9]} 43.
Kh5 {[%clk 0:02:47]} 43... e2 {[%clk 0:02:42.4]} 44. Rb1 {[%clk 0:02:44.9]}
44... d3 {[%clk 0:02:39.9]} 45. Bxa7 {[%clk 0:02:43.4]} 45... d2 {[%clk
0:02:35.7]} 0-1

[Event "Live Chess"]
[Site "Chess.com"]
[Date "2023.05.21"]
[Round "-"]
[White "smoggyrabbit"]
[Black "Jeffaroow"]
[Result "1-0"]
[WhiteElo "1726"]
[BlackElo "518"]
[TimeControl "300"]
[EndTime "0:36:00 PDT"]
[Termination "smoggyrabbit won by checkmate"]

1. d4 {[%clk 0:04:58.6]} 1... d5 {[%clk 0:04:54.5]} 2. Nf3 {[%clk 0:04:57.1]}
2... Nf6 {[%clk 0:04:52.5]} 3. e3 {[%clk 0:04:55.6]} 3... e6 {[%clk 0:04:47.8]}
4. Bd3 {[%clk 0:04:51.3]} 4... Bd6 {[%clk 0:04:35]} 5. O-O {[%clk 0:04:49.7]}
5... e5 {[%clk 0:04:32.9]} 6. dxe5 {[%clk 0:04:47.6]} 6... Bxe5 {[%clk 0:04:24]}
7. Nxe5 {[%clk 0:04:46.4]} 7... O-O {[%clk 0:04:21.9]} 8. b3 {[%clk 0:04:38.2]}
8... Qd6 {[%clk 0:04:12.2]} 9. Bb2 {[%clk 0:04:32.9]} 9... Nc6 {[%clk
0:04:06.2]} 10. Nf3 {[%clk 0:04:25.7]} 10... Bg4 {[%clk 0:03:46.3]} 11. Nbd2
{[%clk 0:04:06.9]} 11... Rae8 {[%clk 0:03:22.7]} 12. h3 {[%clk 0:04:03.5]} 12...
Bxf3 {[%clk 0:03:20]} 13. Nxf3 {[%clk 0:04:00.9]} 13... Ne4 {[%clk 0:03:16.4]}
14. Nd2 {[%clk 0:03:43.7]} 14... Nxd2 {[%clk 0:03:09.3]} 15. Qxd2 {[%clk
0:03:40]} 15... Ne5 {[%clk 0:03:08]} 16. f4 {[%clk 0:03:26.7]} 16... Nxd3 {[%clk
0:03:04.2]} 17. Qxd3 {[%clk 0:03:25.3]} 17... Qb6 {[%clk 0:03:01]} 18. Rf3
{[%clk 0:03:22.6]} 18... d4 {[%clk 0:02:20.9]} 19. Bxd4 {[%clk 0:03:19]} 19...
c5 {[%clk 0:02:18.5]} 20. Bb2 {[%clk 0:03:03.5]} 20... Rd8 {[%clk 0:02:14.7]}
21. Qc3 {[%clk 0:02:58.9]} 21... Rfe8 {[%clk 0:02:09.9]} 22. Qxg7# {[%clk
0:02:57]} 1-0

[Event "Live Chess"]
[Site "Chess.com"]
[Date "2023.05.21"]
[Round "-"]
[White "OSmith06"]
[Black "HoarseyHorsey"]
[Result "0-1"]
[WhiteElo "1646"]
[BlackElo "1459"]
[TimeControl "300"]
[EndTime "0:36:04 PDT"]
[Termination "HoarseyHorsey won by resignation"]

1. e4 {[%clk 0:04:59.2]} 1... c5 {[%clk 0:04:59]} 2. Nf3 {[%clk 0:04:58.2]} 2...
e6 {[%clk 0:04:58.5]} 3. d4 {[%clk 0:04:57.1]} 3... cxd4 {[%clk 0:04:56.8]} 4.
Nxd4 {[%clk 0:04:57]} 4... Nf6 {[%clk 0:04:55.8]} 5. Nc3 {[%clk 0:04:55.2]} 5...
Nc6 {[%clk 0:04:55]} 6. Be3 {[%clk 0:04:54.2]} 6... Bb4 {[%clk 0:04:53.1]} 7. f3
{[%clk 0:04:51.4]} 7... d5 {[%clk 0:04:51.6]} 8. exd5 {[%clk 0:04:48.8]} 8...
exd5 {[%clk 0:04:51.5]} 9. Bb5 {[%clk 0:04:39.4]} 9... Bd7 {[%clk 0:04:45.8]}
10. Qe2 {[%clk 0:04:38]} 10... O-O {[%clk 0:04:42.8]} 11. O-O {[%clk 0:04:31.2]}
11... Re8 {[%clk 0:04:33]} 12. Nxc6 {[%clk 0:04:25]} 12... bxc6 {[%clk
0:04:31.5]} 13. Ba4 {[%clk 0:04:08.7]} 13... d4 {[%clk 0:04:24]} 14. a3 {[%clk
0:04:06.3]} 14... Rxe3 {[%clk 0:04:21.2]} 0-1

[Event "Live Chess"]
[Site "Chess.com"]
[Date "2023.05.21"]
[Round "-"]
[White "MJMykh"]
[Black "Nazar_777"]
[Result "0-1"]
[WhiteElo "1092"]
[BlackElo "1587"]
[TimeControl "300"]
[EndTime "0:36:07 PDT"]
[Termination "Nazar_777 won by resignation"]

1. e4 {[%clk 0:04:58.2]} 1... e6 {[%clk 0:04:58.9]} 2. d4 {[%clk 0:04:56.3]}
2... a6 {[%clk 0:04:57.8]} 3. Nf3 {[%clk 0:04:55]} 3... h5 {[%clk 0:04:50.8]} 4.
Nc3 {[%clk 0:04:53.3]} 4... c5 {[%clk 0:04:50]} 5. dxc5 {[%clk 0:04:51.6]} 5...
Bxc5 {[%clk 0:04:48.8]} 6. Bc4 {[%clk 0:04:50.3]} 6... Be7 {[%clk 0:04:47.8]} 7.
O-O {[%clk 0:04:49]} 7... Nf6 {[%clk 0:04:47.2]} 8. h3 {[%clk 0:04:47.9]} 8...
Nc6 {[%clk 0:04:46.3]} 9. Bg5 {[%clk 0:04:46.9]} 9... Qc7 {[%clk 0:04:45.5]} 10.
Bxf6 {[%clk 0:04:46.2]} 10... gxf6 {[%clk 0:04:43.2]} 11. Re1 {[%clk 0:04:41.8]}
11... Rg8 {[%clk 0:04:42.2]} 12. a4 {[%clk 0:04:33.5]} 12... b6 {[%clk
0:04:40.8]} 13. Qd3 {[%clk 0:04:19.5]} 13... Ne5 {[%clk 0:04:38.9]} 14. Nxe5
{[%clk 0:04:18.2]} 14... fxe5 {[%clk 0:04:37.8]} 15. Bb3 {[%clk 0:04:12.3]}
15... Bb7 {[%clk 0:04:36.5]} 16. Kh2 {[%clk 0:04:02]} 16... Bc5 {[%clk
0:04:34.1]} 17. Rf1 {[%clk 0:03:56.7]} 17... f5 {[%clk 0:04:30.1]} 18. exf5
{[%clk 0:03:48.8]} 18... e4+ {[%clk 0:03:46.2]} 0-1

[Event "Live Chess"]
[Site "Chess.com"]
[Date "2023.05.21"]
[Round "-"]
[White "profpirate4"]
[Black "LutherSullivan"]
[Result "0-1"]
[WhiteElo "1299"]
[BlackElo "2125"]
[TimeControl "300"]
[EndTime "0:36:13 PDT"]
[Termination "LutherSullivan won by resignation"]

1. d4 {[%clk 0:04:58]} 1... Nf6 {[%clk 0:04:58.5]} 2. c4 {[%clk 0:04:56.3]} 2...
e6 {[%clk 0:04:57.6]} 3. Nc3 {[%clk 0:04:53.6]} 3... Bb4 {[%clk 0:04:56.7]} 4.
e3 {[%clk 0:04:51.5]} 4... O-O {[%clk 0:04:55.1]} 5. Bd3 {[%clk 0:04:49.1]} 5...
d5 {[%clk 0:04:53.7]} 6. cxd5 {[%clk 0:04:47.4]} 6... exd5 {[%clk 0:04:51.8]} 7.
Qc2 {[%clk 0:04:46]} 7... c5 {[%clk 0:04:49.6]} 8. Nf3 {[%clk 0:04:44.3]} 8...
Nc6 {[%clk 0:04:45.3]} 9. O-O {[%clk 0:04:42.4]} 9... cxd4 {[%clk 0:04:40.9]}
10. exd4 {[%clk 0:04:41.2]} 10... Bg4 {[%clk 0:04:38.6]} 11. a3 {[%clk
0:04:35.7]} 11... Bxf3 {[%clk 0:04:31]} 12. axb4 {[%clk 0:04:34.3]} 12... Nxb4
{[%clk 0:04:25.5]} 13. Qd2 {[%clk 0:04:29.3]} 13... Nxd3 {[%clk 0:04:21.4]} 14.
Qxd3 {[%clk 0:04:28.4]} 14... Be4 {[%clk 0:04:20.6]} 15. Nxe4 {[%clk 0:04:26.7]}
15... Nxe4 {[%clk 0:04:19.6]} 16. Qb5 {[%clk 0:04:12.9]} 16... Qd6 {[%clk
0:03:30.9]} 17. Qxb7 {[%clk 0:04:05.5]} 17... Rfb8 {[%clk 0:03:26.3]} 18. Qa6
{[%clk 0:04:02.6]} 18... Rb6 {[%clk 0:03:22.8]} 19. Qd3 {[%clk 0:03:56.4]} 19...
a5 {[%clk 0:03:06.6]} 20. f3 {[%clk 0:03:51]} 20... Nf6 {[%clk 0:03:02.7]} 21.
Re1 {[%clk 0:03:38.8]} 21... h6 {[%clk 0:03:00.8]} 22. Qf5 {[%clk 0:03:32.7]}
22... Qb4 {[%clk 0:02:57]} 23. Re2 {[%clk 0:03:09.3]} 23... Raa6 {[%clk
0:02:50.6]} 24. Rb1 {[%clk 0:02:56.7]} 24... Re6 {[%clk 0:02:44.5]} 25. Bd2
{[%clk 0:02:50.8]} 25... Qxd4+ {[%clk 0:02:41.3]} 26. Be3 {[%clk 0:02:43]} 26...
Rxe3 {[%clk 0:02:36.9]} 27. Qc8+ {[%clk 0:02:30]} 27... Kh7 {[%clk 0:02:35.2]}
28. Qxa6 {[%clk 0:02:27.9]} 28... Rxe2+ {[%clk 0:02:30.9]} 29. Kh1 {[%clk
0:02:24]} 29... Qxb2 {[%clk 0:02:29.7]} 30. Qd3+ {[%clk 0:02:10.7]} 30... g6
{[%clk 0:02:25.1]} 31. Rd1 {[%clk 0:01:59.1]} 31... Rxg2 {[%clk 0:02:20.5]} 32.
Qf1 {[%clk 0:01:39]} 32... Rxh2+ {[%clk 0:02:16]} 33. Kg1 {[%clk 0:01:37.9]}
33... Rh5 {[%clk 0:02:08.8]} 34. Qf2 {[%clk 0:01:30.2]} 34... Rh1+ {[%clk
0:02:06.6]} 35. Kxh1 {[%clk 0:01:25]} 35... Qxf2 {[%clk 0:02:05.9]} 36. Rxd5
{[%clk 0:01:24.2]} 36... Qxf3+ {[%clk 0:02:03.1]} 37. Kg1 {[%clk 0:01:22.1]}
37... Qxd5 {[%clk 0:02:02.7]} 0-1

[Event "Live Chess"]
[Site "Chess.com"]
[Date "2023.05.21"]
[Round "-"]
[White "WilliamofOrange16th"]
[Black "Geomorph"]
[Result "1-0"]
[WhiteElo "1829"]
[BlackElo "1271"]
[TimeControl "300"]
[EndTime "0:36:29 PDT"]
[Termination "WilliamofOrange16th won by resignation"]

1. e4 {[%clk 0:04:57.7]} 1... e5 {[%clk 0:04:58.8]} 2. Nf3 {[%clk 0:04:56.6]}
2... Nc6 {[%clk 0:04:57.7]} 3. Bc4 {[%clk 0:04:56.1]} 3... Bc5 {[%clk
0:04:55.5]} 4. O-O {[%clk 0:04:54.6]} 4... Nf6 {[%clk 0:04:53.2]} 5. d4 {[%clk
0:04:54]} 5... exd4 {[%clk 0:04:51]} 6. e5 {[%clk 0:04:53]} 6... Ng4 {[%clk
0:04:49.3]} 7. Re1 {[%clk 0:04:49]} 7... O-O {[%clk 0:04:44.1]} 8. Bg5 {[%clk
0:04:46.2]} 8... Qe8 {[%clk 0:04:28.9]} 9. Qe2 {[%clk 0:04:42.9]} 9... h6 {[%clk
0:04:20.5]} 10. Bf4 {[%clk 0:04:40.1]} 10... Qe7 {[%clk 0:04:14.9]} 11. h3
{[%clk 0:04:38.7]} 11... Nxf2 {[%clk 0:04:12.4]} 12. Qxf2 {[%clk 0:04:36.4]}
12... d3 {[%clk 0:04:11.4]} 13. Be3 {[%clk 0:04:35.4]} 13... Bxe3 {[%clk
0:03:54.5]} 14. Rxe3 {[%clk 0:04:32.7]} 14... dxc2 {[%clk 0:03:50.1]} 15. Qxc2
{[%clk 0:04:32.6]} 15... Qc5 {[%clk 0:03:45.4]} 16. Qc3 {[%clk 0:04:29.7]} 16...
b6 {[%clk 0:03:40.7]} 17. Nbd2 {[%clk 0:04:25.1]} 17... Kh8 {[%clk 0:03:30.4]}
18. Kh1 {[%clk 0:04:22.7]} 18... Re8 {[%clk 0:03:26.4]} 19. Rae1 {[%clk
0:04:18.7]} 19... Bb7 {[%clk 0:03:25.3]} 20. Ne4 {[%clk 0:04:17]} 20... Qe7
{[%clk 0:03:23.9]} 21. Ng3 {[%clk 0:04:13.6]} 21... Nd8 {[%clk 0:03:18.3]} 22.
Nf5 {[%clk 0:04:04.7]} 22... Qc5 {[%clk 0:03:14.5]} 23. e6 {[%clk 0:04:01]}
23... Nxe6 {[%clk 0:03:04.5]} 24. Bxe6 {[%clk 0:03:59.8]} 24... Qxc3 {[%clk
0:03:03]} 25. Rxc3 {[%clk 0:03:56]} 25... dxe6 {[%clk 0:02:57.3]} 26. N5d4
{[%clk 0:03:53.2]} 26... c5 {[%clk 0:02:55.8]} 27. Nb5 {[%clk 0:03:51.6]} 27...
Ba6 {[%clk 0:02:42.5]} 28. Nc7 {[%clk 0:03:49]} 28... Red8 {[%clk 0:02:34.9]}
29. Nxa8 {[%clk 0:03:47.5]} 29... Rxa8 {[%clk 0:02:34.8]} 30. Rd1 {[%clk
0:03:44.9]} 30... Kh7 {[%clk 0:02:26.4]} 31. Rd7 {[%clk 0:03:41.7]} 31... Kg6
{[%clk 0:02:22.6]} 32. Ne5+ {[%clk 0:03:40.4]} 32... Kf6 {[%clk 0:02:21.2]} 33.
Nc6 {[%clk 0:03:39.3]} 33... Bb5 {[%clk 0:02:17.3]} 34. Rf3+ {[%clk 0:03:36.6]}
34... Kg6 {[%clk 0:02:10.5]} 35. Ne7+ {[%clk 0:03:26.1]} 35... Kh7 {[%clk
0:02:03.7]} 36. Rc7 {[%clk 0:03:20.9]} 36... a5 {[%clk 0:01:56.9]} 37. Rxf7
{[%clk 0:03:19.5]} 1-0

[Event "Live Chess"]
[Site "Chess.com"]
[Date "2023.05.21"]
[Round "-"]
[White "Ferrarifan27"]
[Black "friarnator"]
[Result "1-0"]
[WhiteElo "2080"]
[BlackElo "1993"]
[TimeControl "300"]
[EndTime "0:37:11 PDT"]
[Termination "Ferrarifan27 won by checkmate"]

1. e4 {[%clk 0:04:58.7]} 1... e5 {[%clk 0:04:54.3]} 2. Nf3 {[%clk 0:04:57.3]}
2... Nc6 {[%clk 0:04:53.7]} 3. Bb5 {[%clk 0:04:55.4]} 3... a6 {[%clk 0:04:52.9]}
4. Ba4 {[%clk 0:04:53.9]} 4... Nf6 {[%clk 0:04:52.1]} 5. O-O {[%clk 0:04:51.1]}
5... Be7 {[%clk 0:04:51.3]} 6. Re1 {[%clk 0:04:49.5]} 6... b5 {[%clk 0:04:50.4]}
7. Bb3 {[%clk 0:04:48.2]} 7... O-O {[%clk 0:04:49.7]} 8. c3 {[%clk 0:04:45.4]}
8... d5 {[%clk 0:04:48.5]} 9. exd5 {[%clk 0:04:44.1]} 9... Nxd5 {[%clk
0:04:48.4]} 10. Nxe5 {[%clk 0:04:40.9]} 10... Nxe5 {[%clk 0:04:48.3]} 11. Rxe5
{[%clk 0:04:40]} 11... c6 {[%clk 0:04:47.6]} 12. d3 {[%clk 0:04:38.3]} 12... Bd6
{[%clk 0:04:45.5]} 13. Re1 {[%clk 0:04:37.1]} 13... Qh4 {[%clk 0:04:44.5]} 14.
g3 {[%clk 0:04:36.4]} 14... Qh3 {[%clk 0:04:43.5]} 15. Re4 {[%clk 0:04:35.5]}
15... Nf6 {[%clk 0:04:02.1]} 16. Rh4 {[%clk 0:04:32.7]} 16... Qf5 {[%clk
0:04:00.7]} 17. Bc2 {[%clk 0:04:23]} 17... g5 {[%clk 0:03:31.9]} 18. d4 {[%clk
0:04:21]} 18... Qd5 {[%clk 0:03:19.6]} 19. Rh5 {[%clk 0:04:00.2]} 19... Nxh5
{[%clk 0:02:55.1]} 20. Qxh5 {[%clk 0:03:56.8]} 20... Bf5 {[%clk 0:02:49.5]} 21.
Qxg5+ {[%clk 0:03:45.6]} 21... Bg6 {[%clk 0:02:47.9]} 22. Bxg6 {[%clk
0:03:36.4]} 22... fxg6 {[%clk 0:02:29]} 23. Qxd5+ {[%clk 0:03:32.6]} 23... cxd5
{[%clk 0:02:28.9]} 24. Be3 {[%clk 0:03:31]} 24... Rac8 {[%clk 0:02:09.5]} 25.
Nd2 {[%clk 0:03:29.8]} 25... b4 {[%clk 0:02:08.5]} 26. cxb4 {[%clk 0:03:21.9]}
26... Bxb4 {[%clk 0:02:08.4]} 27. a3 {[%clk 0:03:16.1]} 27... Bxd2 {[%clk
0:02:05.2]} 28. Bxd2 {[%clk 0:03:16]} 28... Rc2 {[%clk 0:02:04.1]} 29. Be3
{[%clk 0:03:13.2]} 29... Rxb2 {[%clk 0:01:48.3]} 30. Rc1 {[%clk 0:03:12.2]}
30... Rb3 {[%clk 0:01:38.3]} 31. a4 {[%clk 0:03:09.1]} 31... Rb4 {[%clk
0:01:34.8]} 32. Rc5 {[%clk 0:03:05.2]} 32... Rd8 {[%clk 0:01:31.6]} 33. Ra5
{[%clk 0:03:03.7]} 33... Rb6 {[%clk 0:01:09.4]} 34. Bf4 {[%clk 0:02:59.5]} 34...
Rd7 {[%clk 0:01:04.4]} 35. Be5 {[%clk 0:02:51.5]} 35... Kf7 {[%clk 0:01:03.3]}
36. Rc5 {[%clk 0:02:48.5]} 36... Ke6 {[%clk 0:00:56.9]} 37. a5 {[%clk
0:02:44.6]} 37... Rb1+ {[%clk 0:00:42.5]} 38. Kg2 {[%clk 0:02:43.7]} 38... Kf5
{[%clk 0:00:36.8]} 39. Rc6 {[%clk 0:02:39.2]} 39... Ra7 {[%clk 0:00:35.5]} 40.
f3 {[%clk 0:02:21.4]} 40... h5 {[%clk 0:00:31.3]} 41. Rf6+ {[%clk 0:02:15.9]}
41... Kg5 {[%clk 0:00:30.1]} 42. h4+ {[%clk 0:02:13.2]} 42... Kh6 {[%clk
0:00:29.3]} 43. Rf8 {[%clk 0:01:51.2]} 43... Rh7 {[%clk 0:00:22.4]} 44. Ra8
{[%clk 0:01:38.7]} 44... Rb2+ {[%clk 0:00:21.4]} 45. Kh3 {[%clk 0:01:37.2]}
45... Rb3 {[%clk 0:00:21.3]} 46. Rxa6 {[%clk 0:01:31]} 46... Rxf3 {[%clk
0:00:20.3]} 47. Rd6 {[%clk 0:01:21.6]} 47... Ra3 {[%clk 0:00:19.4]} 48. Rxd5
{[%clk 0:01:18.5]} 48... Ra7 {[%clk 0:00:16.9]} 49. Bf4+ {[%clk 0:01:14.2]}
49... Kh7 {[%clk 0:00:15.4]} 50. Be5 {[%clk 0:00:59.8]} 50... R3xa5 {[%clk
0:00:14.1]} 51. Rd8 {[%clk 0:00:59.3]} 51... Ra4 {[%clk 0:00:11.6]} 52. Rh8#
{[%clk 0:00:57.9]} 1-0

[Event "Live Chess"]
[Site "Chess.com"]
[Date "2023.05.21"]
[Round "-"]
[White "BostonStrangler"]
[Black "mattihelenius2"]
[Result "1-0"]
[WhiteElo "2058"]
[BlackElo "493"]
[TimeControl "300"]
[EndTime "0:37:15 PDT"]
[Termination "BostonStrangler won by resignation"]

1. Nf3 {[%clk 0:04:57.7]} 1... d5 {[%clk 0:04:56]} 2. g3 {[%clk 0:04:55.5]} 2...
Nf6 {[%clk 0:04:53.4]} 3. Bg2 {[%clk 0:04:54.9]} 3... Nc6 {[%clk 0:04:52]} 4. c4
{[%clk 0:04:53.2]} 4... e5 {[%clk 0:04:51.2]} 5. cxd5 {[%clk 0:04:51.6]} 5...
Nxd5 {[%clk 0:04:49.9]} 6. d3 {[%clk 0:04:48.3]} 6... Nf6 {[%clk 0:04:48.6]} 7.
O-O {[%clk 0:04:46.6]} 7... Bg4 {[%clk 0:04:47.6]} 8. Nc3 {[%clk 0:04:44.7]}
8... Bb4 {[%clk 0:04:44.8]} 9. Qa4 {[%clk 0:04:37.6]} 9... Qd7 {[%clk
0:04:35.9]} 10. Nxe5 {[%clk 0:04:26.6]} 10... Nxe5 {[%clk 0:04:32.8]} 11. Qxb4
{[%clk 0:04:25.6]} 11... Nd5 {[%clk 0:04:07.7]} 12. Nxd5 {[%clk 0:04:21.7]}
12... Qxd5 {[%clk 0:04:06.6]} 13. Bxd5 {[%clk 0:04:19.8]} 1-0

[Event "Live Chess"]
[Site "Chess.com"]
[Date "2023.05.21"]
[Round "-"]
[White "seasidecastle27"]
[Black "Duke_of_Bebington"]
[Result "1-0"]
[WhiteElo "1838"]
[BlackElo "1585"]
[TimeControl "300"]
[EndTime "0:37:18 PDT"]
[Termination "seasidecastle27 won by resignation"]

1. d4 {[%clk 0:04:57.8]} 1... d5 {[%clk 0:04:57.6]} 2. Nf3 {[%clk 0:04:56.8]}
2... Nf6 {[%clk 0:04:55.3]} 3. Bf4 {[%clk 0:04:55.8]} 3... Bf5 {[%clk
0:04:50.4]} 4. e3 {[%clk 0:04:54.6]} 4... e6 {[%clk 0:04:45.2]} 5. Bd3 {[%clk
0:04:49.4]} 5... Bxd3 {[%clk 0:04:42.6]} 6. Qxd3 {[%clk 0:04:47.8]} 6... c6
{[%clk 0:04:36.4]} 7. Nbd2 {[%clk 0:04:45.9]} 7... Bd6 {[%clk 0:04:33.7]} 8. Bg3
{[%clk 0:04:42.7]} 8... Bxg3 {[%clk 0:04:31.5]} 9. hxg3 {[%clk 0:04:41.2]} 9...
Qb6 {[%clk 0:04:25.8]} 10. O-O-O {[%clk 0:04:37.7]} 10... a5 {[%clk 0:04:21.4]}
11. e4 {[%clk 0:04:35]} 11... a4 {[%clk 0:04:14.4]} 12. a3 {[%clk 0:04:26.1]}
12... Ng4 {[%clk 0:03:55.8]} 13. Qe2 {[%clk 0:04:11.8]} 13... Nd7 {[%clk
0:03:47.9]} 14. Ng5 {[%clk 0:03:55]} 14... Ngf6 {[%clk 0:03:25.6]} 15. e5 {[%clk
0:03:49.3]} 15... Ng8 {[%clk 0:03:22.6]} 16. Rxh7 {[%clk 0:03:42.7]} 16... Rxh7
{[%clk 0:03:20]} 17. Nxh7 {[%clk 0:03:40.7]} 17... Qxd4 {[%clk 0:03:17.5]} 18.
Nf3 {[%clk 0:03:32.9]} 18... Qg4 {[%clk 0:03:07.3]} 19. Nhg5 {[%clk 0:03:26.7]}
19... Nh6 {[%clk 0:02:52.9]} 20. Nh3 {[%clk 0:03:09.6]} 20... Nf5 {[%clk
0:02:23.3]} 21. Nf4 {[%clk 0:02:52.4]} 21... O-O-O {[%clk 0:02:10.6]} 22. Qd2
{[%clk 0:02:37.1]} 22... Nc5 {[%clk 0:01:41.7]} 23. Qb4 {[%clk 0:02:27.6]} 23...
Ne4 {[%clk 0:01:27.8]} 24. Nd3 {[%clk 0:02:09.8]} 24... Kc7 {[%clk 0:01:02.8]}
25. Qa5+ {[%clk 0:02:04.4]} 25... Kc8 {[%clk 0:01:00]} 26. Qxa4 {[%clk
0:02:00.1]} 26... Ne7 {[%clk 0:00:48.1]} 27. Nc5 {[%clk 0:01:43.8]} 27... Nxc5
{[%clk 0:00:23.7]} 28. Qxg4 {[%clk 0:01:41.2]} 1-0